bitfinex/quotes_SOLUSD_20240726
["timestamp","ask_amount","ask_price","bid_price","bid_amount"]
[1722014592798,13.07,182.18,182.17,5.489]
[1722014594000,13.07,182.18,182.16,19.2131]
[1722014594820,13.07,182.18,182.17,5.4893]
[1722014598691,13.07,182.19,182.17,5.4893]
[1722014599710,13.07,182.18,182.17,5.4893]
[1722014600015,13.07,182.18,182.16,13.7236]
[1722014600205,13.07,182.17,182.16,13.7236]
[1722014600725,13.07,182.17,182.16,19.2132]
[1722014601421,13.07,182.18,182.17,5.4893]
[1722014604037,13.07,182.18,182.16,19.2132]
[1722014604220,13.07,182.17,182.16,19.2132]
[1722014604732,13.07,182.17,182.14,5.49]
[1722014604943,13.07,182.16,182.15,5.4899]
[1722014605439,13.07,182.17,182.16,5.4896]
[1722014605608,13.07,182.18,182.16,5.4896]
[1722014606009,13.07,182.17,182.16,5.4896]
[1722014606235,40.0,182.23,182.15,13.7246]
[1722014606236,13.07,182.18,182.17,5.489]
[1722014608711,13.07,182.19,182.17,5.489]
[1722014610233,13.07,182.18,182.16,5.4896]
[1722014611835,13.07,182.18,182.15,19.2145]
[1722014612835,5.4885,182.2,182.16,5.4896]
[1722014613138,13.07,182.19,182.16,5.4896]
[1722014614332,5.4878,182.23,182.18,13.7226]
[1722014614535,13.07,182.21,182.18,19.2114]
[1722014616611,13.07,182.2,182.18,19.2114]
[1722014618019,13.07,182.2,182.18,13.7226]
[1722014618622,13.07,182.2,182.18,19.2116]
[1722014619443,13.07,182.2,182.18,13.7226]
[1722014623053,13.07,182.21,182.18,13.7226]
[1722014627234,13.07,182.21,182.18,19.2116]
[1722014627749,13.07,182.22,182.19,5.4884]
[1722014627964,15.84157418,182.26,182.22,5.4877]
[1722014628123,21.98527468,182.25,182.22,5.4877]
[1722014628326,13.07,182.26,182.24,5.4871]
[1722014628659,8.91456415,182.25,182.24,5.4871]
[1722014629154,13.07,182.27,182.23,5.4875]
[1722014629447,8.91430895,182.26,182.23,5.4875]
[1722014629760,13.07,182.27,182.23,5.4875]
[1722014629952,13.07,182.26,182.23,5.4875]
[1722014631827,13.07,182.26,182.24,5.4872]
[1722014634556,13.07,182.26,182.25,5.4869]
[1722014634738,25.4851,182.32,182.26,5.4863]
[1722014634949,13.07,182.27,182.26,5.4863]
[1722014635154,20.0,182.21,182.12,22.3391]
[1722014635453,13.07,182.14,182.12,22.3391]
[1722014635657,13.07,182.13,182.12,22.3391]
[1722014636041,13.07,182.13,182.12,27.8299]
[1722014637061,5.4891,182.18,182.13,5.4905]
[1722014637357,13.07,182.16,182.15,5.4899]
[1722014638236,13.07,182.18,182.17,5.489]
[1722014639462,52.28,182.25,182.12,22.3391]
[1722014639463,5.4875,182.24,182.19,5.4885]
[1722014639658,13.07,182.21,182.19,5.4885]
[1722014640029,13.07,182.21,182.2,5.4884]
[1722014640270,13.07,182.23,182.21,5.4881]
[1722014640670,13.07,182.22,182.21,5.4881]
[1722014641873,13.07,182.22,182.21,5.2736532]
[1722014642467,5.4866,182.26,182.21,5.2736532]
[1722014642642,13.07,182.23,182.22,5.4877]
[1722014643947,13.07,182.25,182.22,13.7191]
[1722014644148,13.07,182.27,182.22,13.7191]
[1722014644995,13.07,182.27,182.24,5.4872]
[1722014646257,20.0,182.32,182.23,5.4875]
[1722014646258,13.07,182.25,182.23,5.4875]
[1722014646454,5.4894,182.17,182.14,22.4709]
[1722014646677,13.07,182.15,182.14,22.4709]
[1722014646894,13.07,182.15,182.1,22.4709]
[1722014647178,13.07,182.14,182.1,22.4709]
[1722014647754,5.4891,182.18,182.13,5.4903]
[1722014647960,13.07,182.15,182.14,5.4902]
[1722014648879,5.4888,182.19,182.14,5.4902]
[1722014649085,45.0,182.18,182.14,5.4902]
[1722014650292,45.0,182.18,182.15,5.4898]
[1722014650455,45.0,182.19,182.16,5.4896]
[1722014651160,26.1,182.21,182.17,5.4893]
[1722014651356,5.4876,182.23,182.16,13.7241]
[1722014651564,5.4876,182.23,182.18,5.489]
[1722014652098,5.4868,182.26,182.21,5.488]
[1722014652549,45.0,182.25,182.21,5.488]
[1722014652751,50.487,182.25,182.21,5.488]
[1722014652956,45.0,182.25,182.22,5.4878]
[1722014653155,26.1,182.27,182.22,5.4878]
[1722014653156,45.0,182.26,182.22,5.4878]
[1722014653456,46.1,182.3,182.22,13.7191]
[1722014653651,5.4858,182.29,182.22,13.7191]
[1722014654075,5.4858,182.29,182.24,5.4871]
[1722014654282,24.7234957,182.31,182.23,5.4875]
[1722014654283,5.4861,182.28,182.23,5.4875]
[1722014655083,40.0,182.28,182.18,13.7222]
[1722014655288,5.4868,182.26,182.21,5.4878]
[1722014655482,45.0,182.25,182.21,5.4878]
[1722014655786,5.4863,182.28,182.22,13.7191]
[1722014655989,45.0,182.27,182.23,5.4873]
[1722014657859,45.0,182.27,182.24,5.4872]
[1722014658079,45.0,182.27,182.23,5.4875]
[1722014659788,25.4857,182.3,182.24,5.4872]
[1722014659966,5.6557,182.29,182.24,5.4872]
[1722014660169,45.0,182.28,182.24,5.4872]
[1722014660485,50.4861,182.28,182.24,5.4872]
[1722014660861,45.0,182.28,182.24,5.4872]
[1722014661067,50.656,182.29,182.24,5.4872]
[1722014661396,50.486,182.29,182.25,5.4869]
[1722014662275,5.4854,182.3,182.26,5.4865]
[1722014662462,4.7234957,182.31,182.21,6.5944]
[1722014662657,4.7234957,182.31,182.14,22.8304]
[1722014662658,20.0,182.22,182.14,22.8304]
[1722014662975,26.1,182.2,182.14,22.8304]
[1722014663290,5.4891,182.18,182.14,22.8304]
[1722014664968,5.4888,182.19,182.14,28.3205]
[1722014665181,45.0,182.18,182.14,28.3205]
[1722014665987,20.0,182.24,182.15,13.7246]
[1722014666193,45.17,182.22,182.15,13.7246]
[1722014666684,20.0,182.28,182.18,13.7224]
[1722014666868,5.4873,182.24,182.19,5.4887]
[1722014667076,5.4878,182.23,182.18,19.2113]
[1722014667267,20.0,182.25,182.18,13.7224]
[1722014667268,5.4878,182.22,182.18,13.7224]
[1722014668488,5.4878,182.22,182.18,19.2114]
[1722014669086,5.4876,182.23,182.18,19.2114]
[1722014669295,45.0,182.22,182.18,19.2114]
[1722014671093,45.0,182.22,182.19,5.4886]
[1722014671282,45.0,182.23,182.19,5.4886]
[1722014671481,46.1,182.2,182.14,36.5554]
[1722014671786,50.6588,182.19,182.14,42.0454]
[1722014672184,45.17,182.19,182.15,5.4898]
[1722014672579,50.6587,182.19,182.15,5.4898]
[1722014674077,5.4891,182.18,182.14,36.5554]
[1722014674273,45.0,182.17,182.14,36.5554]
[1722014674474,45.0,182.17,182.14,42.0454]
[1722014675509,45.0,182.18,182.14,42.0454]
[1722014675710,5.4878,182.23,182.16,13.7236]
[1722014675879,5.4875,182.23,182.19,5.4886]
[1722014676084,5.4875,182.23,182.18,5.489]
[1722014676695,5.4875,182.23,182.18,5.4888]
[1722014677913,45.0,182.22,182.19,5.4884]
[1722014678208,5.4872,182.25,182.18,13.722]
[1722014678209,5.4871,182.25,182.2,5.4881]
[1722014678377,5.4873,182.24,182.2,5.4881]
[1722014678578,5.4873,182.24,182.19,5.4887]
[1722014680602,20.0,182.27,182.19,5.4887]
[1722014680603,5.4875,182.23,182.19,5.4887]
[1722014680783,5.4875,182.23,182.18,13.722]
[1722014680991,5.4882,182.21,182.16,5.4895]
[1722014681293,50.4885,182.2,182.16,5.4895]
[1722014681498,5.4885,182.2,182.15,19.2144]
[1722014681702,5.4882,182.21,182.16,5.4895]
[1722014681883,45.0,182.2,182.16,5.4895]
[1722014684001,45.0,182.2,182.17,5.4893]
[1722014684200,45.0,182.2,182.14,22.8304]
[1722014684388,5.4872,182.24,182.19,5.4885]
[1722014684585,65.50307883,182.28,182.19,13.7215]
[1722014684902,5.487,182.25,182.2,5.4882]
[1722014685209,45.0,182.24,182.2,5.4882]
[1722014685701,26.1,182.28,182.22,5.4877]
[1722014685888,5.4867,182.26,182.21,5.488]
[1722014686206,5.4869,182.25,182.2,5.4883]
[1722014688805,50.4873,182.24,182.2,5.4883]
[1722014688996,45.0,182.24,182.19,19.2102]
[1722014689197,5.4876,182.23,182.19,19.2102]
[1722014689912,50.4873,182.24,182.19,19.2102]
[1722014690413,45.0,182.24,182.2,5.4883]
[1722014693206,50.4873,182.24,182.2,5.4883]
[1722014698511,5.4875,182.23,182.19,13.7215]
[1722014700043,5.4875,182.23,182.19,19.2101]
[1722014700520,50.4873,182.24,182.2,5.4884]
[1722014701117,13.04,182.22,182.2,5.4884]
[1722014701323,13.04,182.22,182.19,19.2102]
[1722014701529,13.04,182.21,182.19,19.2102]
[1722014702024,13.04,182.21,182.2,5.4884]
[1722014702325,13.04,182.22,182.2,5.4884]
[1722014703534,13.04,182.22,182.19,13.7215]
[1722014703894,13.04,182.21,182.19,19.2102]
[1722014704599,13.04,182.21,182.2,5.4884]
[1722014705215,13.04,182.21,182.19,13.7215]
[1722014705414,13.04,182.2,182.19,13.7215]
[1722014705602,13.04,182.21,182.19,13.7215]
[1722014706130,13.04,182.21,182.19,19.2102]
[1722014706624,13.04,182.22,182.19,19.2102]
[1722014706831,13.04,182.21,182.19,19.2102]
[1722014707601,13.04,182.2,182.18,5.489]
[1722014708107,13.04,182.2,182.19,5.4887]
[1722014708726,13.04,182.21,182.19,5.4887]
[1722014709832,13.04,182.2,182.18,19.2111]
[1722014710721,5.4875,182.23,182.19,5.4887]
[1722014710920,45.0,182.24,182.18,19.2111]
[1722014710921,13.04,182.2,182.18,19.2111]
[1722014711119,45.17,182.24,182.14,22.8304]
[1722014711120,5.4892,182.18,182.14,36.556]
[1722014711323,13.04,182.16,182.14,36.556]
[1722014711901,13.04,182.16,182.14,42.0462]
[1722014712118,13.04,182.17,182.15,5.4899]
[1722014712335,5.69128183,182.24,182.14,36.556]
[1722014712547,13.04,182.19,182.16,13.7235]
[1722014712706,45.0,182.23,182.19,5.4886]
[1722014712913,13.04,182.21,182.19,5.4886]
[1722014713115,13.04,182.21,182.18,5.4889]
[1722014717137,13.04,182.2,182.16,19.2129]
[1722014718133,13.04,182.2,182.17,5.4893]
[1722014718643,13.04,182.19,182.16,19.213]
[1722014719931,50.4877,182.23,182.18,5.4887]
[1722014720122,13.04,182.2,182.18,5.4887]
[1722014721258,13.04,182.2,182.17,5.4892]
[1722014723429,13.04,182.2,182.18,5.4889]
[1722014723623,45.0,182.23,182.18,13.7221]
[1722014723822,13.04,182.22,182.18,13.7221]
[1722014724149,13.04,182.21,182.19,5.4886]
[1722014724329,13.04,182.21,182.18,19.211]
[1722014725954,13.04,182.22,182.19,5.4887]
[1722014726461,13.04,182.21,182.19,5.4887]
[1722014726662,13.04,182.2,182.18,19.2111]
[1722014727456,13.04,182.2,182.15,13.7246]
[1722014727654,13.04,182.2,182.17,5.4893]
[1722014729541,13.04,182.2,182.15,13.7246]
[1722014729747,58.04,182.19,182.16,5.4895]
[1722014731269,45.0,182.19,182.16,5.4895]
[1722014731648,45.0,182.19,182.17,13.7229]
[1722014732153,45.0,182.19,182.17,19.2122]
[1722014732663,45.0,182.19,182.17,13.7229]
[1722014732866,45.0,182.2,182.17,13.7229]
[1722014734968,13.04,182.18,182.17,13.7229]
[1722014736566,13.04,182.19,182.17,13.7229]
[1722014736762,13.04,182.18,182.15,5.4899]
[1722014737064,13.04,182.17,182.15,5.4899]
[1722014737241,13.04,182.16,182.14,36.556]
[1722014737760,13.04,182.17,182.14,36.556]
[1722014738254,13.04,182.17,182.14,42.0462]
[1722014741270,45.0,182.2,182.14,36.556]
[1722014741473,13.04,182.19,182.16,13.7236]
[1722014741660,13.04,182.19,182.18,5.489]
[1722014741860,13.04,182.19,182.16,19.2132]
[1722014742582,13.04,182.2,182.16,19.2132]
[1722014742768,5.4882,182.21,182.16,19.2132]
[1722014742769,13.04,182.19,182.16,19.2132]
[1722014745775,13.04,182.19,182.16,13.7236]
[1722014745953,13.04,182.17,182.14,28.3206]
[1722014750099,5.4884,182.21,182.14,22.8304]
[1722014750382,13.04,182.19,182.16,5.4895]
[1722014751078,45.0,182.2,182.15,13.7245]
[1722014751281,25.67963076,182.25,182.17,13.7229]
[1722014751581,13.04,182.22,182.19,5.4887]
[1722014753180,13.04,182.21,182.19,5.4887]
[1722014754365,13.04,182.21,182.17,13.7229]
[1722014754366,13.04,182.2,182.17,19.212]
[1722014754674,13.04,182.19,182.17,19.212]
[1722014755054,13.04,182.2,182.17,19.212]
[1722014755674,13.04,182.2,182.18,5.489]
[1722014755853,13.04,182.21,182.18,5.489]
[1722014756282,5.4879,182.22,182.18,5.489]
[1722014756476,58.04,182.21,182.18,5.489]
[1722014757579,5.4876,182.23,182.18,5.489]
[1722014757965,13.04,182.21,182.18,5.489]
[1722014758982,5.4873,182.24,182.19,5.4885]
[1722014759287,13.04,182.2,182.17,19.212]
[1722014761866,13.04,182.2,182.17,13.7229]
[1722014762184,13.04,182.2,182.17,19.2122]
[1722014762572,13.04,182.2,182.18,5.489]
[1722014762772,13.04,182.19,182.18,5.489]
[1722014763170,13.04,182.22,182.2,5.4882]
[1722014765392,13.04,182.23,182.21,5.4881]
[1722014765887,11.54,182.23,182.21,5.4881]
[1722014766193,5.487,182.25,182.17,5.4893]
[1722014766194,63.5278,182.22,182.17,5.4893]
[1722014766387,13.04,182.19,182.17,5.4893]
[1722014766893,13.04,182.19,182.18,5.489]
[1722014767098,13.04,182.19,182.17,5.4892]
[1722014768095,13.04,182.19,182.18,5.489]
[1722014768289,13.04,182.2,182.18,5.489]
[1722014768471,13.04,182.2,182.16,13.7239]
[1722014768793,13.04,182.22,182.2,5.4884]
[1722014770605,13.04,182.21,182.2,5.4884]
[1722014778790,13.04,182.21,182.19,5.4886]
[1722014779796,13.04,182.22,182.2,5.4883]
[1722014780381,13.04,182.22,182.19,5.4887]
[1722014780576,13.04,182.22,182.18,13.7221]
[1722014780798,13.04,182.23,182.21,5.4881]
[1722014781305,13.04,182.23,182.2,5.4884]
[1722014781885,13.04,182.22,182.2,5.4884]
[1722014782622,13.04,182.24,182.22,5.4878]
[1722014782982,13.04,182.25,182.22,5.4878]
[1722014783680,13.04,182.25,182.21,19.208]
[1722014784124,13.04,182.24,182.21,19.208]
[1722014785889,10.2100957,182.26,182.21,19.208]
[1722014786095,13.04,182.24,182.21,19.208]
[1722014787001,4.7234957,182.26,182.23,13.7182]
[1722014787205,4.7234957,182.26,182.24,5.4872]
[1722014787994,4.7234957,182.26,182.25,5.4869]
[1722014789907,37.9334957,182.26,182.13,21.7804]
[1722014790216,5.4876,182.23,182.18,5.4888]
[1722014790390,45.0,182.22,182.19,5.4887]
[1722014790594,13.04,182.2,182.19,5.4887]
[1722014790900,13.04,182.21,182.19,5.4887]
[1722014791111,13.04,182.2,182.19,5.4887]
[1722014791503,13.04,182.21,182.19,5.4887]
[1722014792093,13.04,182.21,182.2,5.4884]
[1722014792489,24.7234957,182.26,182.21,13.7204]
[1722014792716,13.04,182.22,182.21,19.2085]
[1722014793714,4.7234957,182.26,182.21,19.2085]
[1722014793911,13.04,182.23,182.21,19.2085]
[1722014794613,13.04,182.23,182.22,5.4878]
[1722014795140,13.04,182.24,182.21,13.7204]
[1722014795296,58.04,182.25,182.21,13.7204]
[1722014795496,58.04,182.25,182.24,5.4872]
[1722014796401,45.0,182.25,182.24,5.4872]
[1722014796721,58.04,182.25,182.24,5.4872]
[1722014797524,58.04,182.25,182.23,5.4874]
[1722014797724,4.7234957,182.26,182.24,13.04]
[1722014797909,4.7234957,182.26,182.25,18.5269]
[1722014798420,4.7234957,182.26,182.25,41.6873]
[1722014799334,13.04,182.36,182.32,13.7117]
[1722014799613,13.04,182.36,182.34,5.4842]
[1722014800200,13.04,182.37,182.35,5.4839]
[1722014800817,13.8196069,182.38,182.36,5.4836]
[1722014801019,0.7796069,182.38,182.36,5.4836]
[1722014801227,0.7796069,182.38,182.37,5.4833]
[1722014801814,0.7796069,182.38,182.36,5.4835]
[1722014802232,45.7796069,182.38,182.36,5.4835]
[1722014802433,20.0,182.34,182.29,5.4855]
[1722014802731,13.04,182.3,182.26,5.4866]
[1722014802927,13.04,182.29,182.27,13.7151]
[1722014804423,13.04,182.29,182.27,19.2013]
[1722014805341,13.04,182.29,182.28,5.486]
[1722014805632,13.04,182.3,182.28,10.16503683]
[1722014805806,45.0,182.29,182.28,10.16503683]
[1722014806738,13.04,182.31,182.28,4.67903683]
[1722014807121,13.04,182.31,182.3,5.4853]
[1722014807423,58.04,182.31,182.3,5.4853]
[1722014808647,25.4857,182.29,182.28,4.67903683]
[1722014808833,25.4874,182.24,182.09,27.4577]
[1722014809031,13.04,182.2,182.15,34.9567]
[1722014809743,13.04,182.2,182.19,5.4887]
[1722014809914,58.04,182.2,182.19,5.4887]
[1722014810342,57.89783807,182.2,182.19,10.16773683]
[1722014810554,45.0,182.2,182.19,10.16773683]
[1722014811143,20.0,182.24,182.2,5.4884]
[1722014811444,45.17,182.23,182.2,5.4884]
[1722014812221,45.17,182.23,182.22,5.4878]
[1722014812420,20.0,182.3,182.19,4.67903683]
[1722014812723,5.4858,182.29,182.24,13.7181]
[1722014812924,5.4858,182.29,182.24,19.2053]
[1722014813250,20.0,182.3,182.24,19.2053]
[1722014813251,5.4861,182.28,182.24,13.7181]
[1722014813442,20.0,182.27,182.24,13.7181]
[1722014813936,45.17,182.26,182.24,13.7181]
[1722014815444,45.17,182.26,182.25,4.67903683]
[1722014819137,70.6566,182.26,182.25,4.67903683]
[1722014821757,25.4863,182.28,182.25,4.67903683]
[1722014822058,5.4863,182.27,182.25,4.67903683]
[1722014822743,25.4861,182.28,182.25,4.67903683]
[1722014823151,45.17,182.27,182.25,4.67903683]
[1722014824048,50.6563,182.27,182.25,4.67903683]
[1722014824548,50.6563,182.27,182.26,4.67903683]
[1722014828561,5.4863,182.27,182.26,4.67903683]
[1722014828734,25.486,182.28,182.26,4.67903683]
[1722014829841,45.17,182.27,182.26,4.67903683]
[1722014830260,50.6563,182.27,182.26,4.67903683]
[1722014830772,5.4867,182.26,182.22,41.143]
[1722014831062,45.0,182.25,182.22,41.1431]
[1722014831432,45.0,182.26,182.22,41.1431]
[1722014832155,45.0,182.26,182.24,4.68193699]
[1722014833867,45.0,182.26,182.24,10.16913699]
[1722014834055,5.4858,182.29,182.25,5.4869]
[1722014834258,5.4852,182.31,182.27,5.4863]
[1722014834438,5.4852,182.31,182.26,5.4866]
[1722014835144,18.5152,182.31,182.26,5.4866]
[1722014835864,45.0,182.3,182.26,5.4866]
[1722014836163,45.0,182.3,182.26,18.5166]
[1722014837063,45.0,182.3,182.26,5.4866]
[1722014837366,45.0,182.3,182.27,4.68193699]
[1722014838361,5.4846,182.33,182.27,18.39773699]
[1722014838566,5.4846,182.33,182.29,6.2154]
[1722014839777,5.4854,182.3,182.29,6.2154]
[1722014839950,50.4854,182.3,182.29,6.2154]
[1722014842379,45.0,182.3,182.29,6.2154]
[1722014852687,45.0,182.3,182.27,10.16823699]
[1722014852887,45.0,182.29,182.28,5.486]
[1722014855790,0.4247222,182.3,182.29,5.4857]
[1722014857806,0.4247222,182.3,182.29,4.68193699]
[1722014858101,0.4247222,182.3,182.29,10.16763699]
[1722014860099,0.4247222,182.3,182.29,4.68193699]
[1722014861271,0.4247222,182.3,182.29,10.16763699]
[1722014863192,0.4247222,182.3,182.29,29.34523699]
[1722014863500,13.03,182.39,182.29,23.85953699]
[1722014863672,13.03,182.4,182.36,5.4833]
[1722014864190,13.03,182.4,182.37,5.4833]
[1722014864399,5.4823,182.41,182.37,5.4833]
[1722014864576,13.03,182.4,182.37,5.4833]
[1722014864774,13.03,182.4,182.36,5.4836]
[1722014864980,5.4823,182.41,182.35,13.7093]
[1722014865174,18.5123,182.41,182.37,5.4833]
[1722014865367,5.4823,182.41,182.36,5.4835]
[1722014865583,13.2,182.4,182.36,5.4835]
[1722014866006,13.03,182.41,182.37,5.4832]
[1722014866296,13.03,182.42,182.39,5.4824]
[1722014866686,13.03,182.41,182.39,5.4824]
[1722014867476,11.21027566,182.45,182.4,5.4824]
[1722014867705,13.03,182.43,182.4,5.4824]
[1722014868317,13.03,182.43,182.41,5.4821]
[1722014868689,13.03,182.43,182.39,5.4824]
[1722014868874,13.03,182.43,182.4,5.4823]
[1722014869275,13.03,182.42,182.4,5.4823]
[1722014871002,13.03,182.42,182.41,4.67778312]
[1722014876987,5.4813,182.44,182.41,4.67778312]
[1722014877192,13.03,182.42,182.41,4.67778312]
[1722014878834,83.5118,182.42,182.41,4.67778312]
[1722014879115,63.6818,182.42,182.41,4.67778312]
[1722014879322,58.2,182.42,182.41,4.67778312]
[1722014880424,83.6818,182.42,182.41,4.67778312]
[1722014881091,83.6818,182.42,182.41,0.50737966]
[1722014882821,70.6518,182.42,182.41,0.50737966]
[1722014883003,83.6818,182.42,182.41,0.50737966]
[1722014883802,63.6818,182.42,182.41,0.50737966]
[1722014884194,58.2,182.42,182.41,0.50737966]
[1722014884402,45.17,182.42,182.41,0.50737966]
[1722014884603,58.2,182.42,182.41,0.50737966]
[1722014884826,63.6818,182.42,182.41,0.50737966]
[1722014886791,45.17,182.42,182.41,0.50737966]
[1722014887001,58.2,182.42,182.41,0.50737966]
[1722014887231,58.03,182.42,182.41,0.50737966]
[1722014889336,63.5118,182.42,182.41,0.50737966]
[1722014889630,63.6818,182.42,182.41,0.50737966]
[1722014891142,58.2,182.42,182.41,0.50737966]
[1722014897626,58.03,182.42,182.41,0.50737966]
[1722014901456,45.0,182.42,182.41,5.98947966]
[1722014901624,25.4809,182.46,182.41,5.98947966]
[1722014901939,13.03,182.44,182.41,5.98947966]
[1722014902143,45.0,182.43,182.41,5.98947966]
[1722014904044,45.0,182.43,182.42,0.50737966]
[1722014904247,58.03,182.43,182.42,0.50737966]
[1722014905317,45.0,182.43,182.42,0.50737966]
[1722014905525,58.03,182.43,182.42,0.50737966]
[1722014908545,66.33080813,182.43,182.42,0.50737966]
[1722014910531,25.73250139,182.46,182.42,5.98917966]
[1722014910532,5.73250139,182.46,182.42,5.98917966]
[1722014910854,8.30031588,182.45,182.43,5.4814]
[1722014911338,24.1228967,182.47,182.44,19.4605]
[1722014911644,0.775273,182.48,182.47,19.1811]
[1722014912353,0.775273,182.48,182.47,47.7905]
[1722014912645,0.775273,182.48,182.47,34.7605]
[1722014913354,0.775273,182.48,182.47,47.7905]
[1722014913554,0.775273,182.48,182.47,75.1922]
[1722014913927,0.775273,182.48,182.47,62.1622]
[1722014914132,0.775273,182.48,182.47,75.1922]
[1722014917253,0.775273,182.48,182.47,62.1622]
[1722014917454,0.775273,182.48,182.47,75.1922]
[1722014917777,0.775273,182.48,182.47,29.2802]
[1722014918058,0.775273,182.48,182.47,14.20817966]
[1722014918257,13.805273,182.48,182.47,0.50737966]
[1722014918638,58.805273,182.48,182.47,0.50737966]
[1722014919660,45.775273,182.48,182.47,0.50737966]
[1722014919846,58.805273,182.48,182.47,0.50737966]
[1722014920049,45.775273,182.48,182.47,0.50737966]
[1722014920242,0.775273,182.48,182.47,5.98767966]
[1722014922145,0.775273,182.48,182.47,19.01767966]
[1722014922344,5.7268671,182.59,182.48,16.0842]
[1722014922631,13.03,182.57,182.56,5.4774]
[1722014922833,13.03,182.57,182.55,13.6948]
[1722014923036,13.03,182.56,182.55,13.6948]
[1722014923233,20.0,182.57,182.51,13.6971]
[1722014923538,13.03,182.55,182.5,13.03]
[1722014923739,20.0,182.59,182.56,5.4774]
[1722014923950,13.03,182.57,182.56,5.4774]
[1722014924552,45.0,182.57,182.56,5.4774]
[1722014924864,58.03,182.57,182.56,5.4774]
[1722014925068,45.0,182.57,182.56,5.4774]
[1722014925363,20.0,182.61,182.58,13.6925]
[1722014925553,13.03,182.59,182.58,19.1695]
[1722014926250,20.0,182.63,182.58,19.1695]
[1722014926577,13.03,182.6,182.59,5.4767]
[1722014927374,13.03,182.6,182.58,19.1694]
[1722014927667,13.03,182.6,182.58,19.67677966]
[1722014927864,45.0,182.59,182.58,19.67677966]
[1722014928049,13.03,182.62,182.61,5.4761]
[1722014928252,0.17,182.62,182.6,5.4764]
[1722014928556,45.0,182.61,182.6,5.4764]
[1722014929145,58.03,182.61,182.59,0.50737966]
[1722014929469,13.03,182.6,182.59,0.50737966]
[1722014929664,45.0,182.6,182.59,5.98407966]
[1722014929849,20.0,182.65,182.59,0.50737966]
[1722014930169,13.03,182.63,182.6,13.6905]
[1722014930371,13.03,182.63,182.61,5.4759]
[1722014931072,13.03,182.63,182.6,19.1668]
[1722014931473,45.0,182.62,182.6,19.1668]
[1722014931844,58.03,182.62,182.6,19.1668]
[1722014932671,58.03,182.62,182.6,13.6905]
[1722014933471,58.03,182.62,182.59,0.50737966]
[1722014933678,13.03,182.6,182.59,0.50737966]
[1722014933852,58.03,182.6,182.59,0.50737966]
[1722014934169,20.0,182.63,182.6,5.4764]
[1722014934375,13.03,182.61,182.6,5.4764]
[1722014934551,58.03,182.61,182.6,5.4764]
[1722014934755,58.03,182.61,182.59,0.50737966]
[1722014935075,13.03,182.62,182.6,5.4764]
[1722014935454,58.2,182.61,182.59,5.98397966]
[1722014935947,13.03,182.6,182.59,0.50737966]
[1722014936152,45.0,182.6,182.59,0.50737966]
[1722014936359,58.2,182.6,182.59,0.50737966]
[1722014939656,45.17,182.6,182.59,0.50737966]
[1722014939850,58.2,182.6,182.59,0.50737966]
[1722014940072,45.17,182.6,182.59,0.50737966]